[Event "*** Titled Tuesday Blitz"]
[Site "Chess.com"]
[Date "2019.03.05"]
[Round "8"]
[White "Sajkochess"]
[Black "zeitnot2006"]
[Result "1-0"]
[WhiteElo "2262"]
[BlackElo "2181"]
[TimeControl "180+2"]
[EndTime "14:52:51 PST"]
[Termination "Sajkochess won by resignation"]

1. e4 {[%clk 0:03:01.9]} 1... c5 {[%clk 0:02:59.6]} 2. Nf3 {[%clk 0:02:59.1]}
2... e6 {[%clk 0:03:00.8]} 3. d4 {[%clk 0:03:00.2]} 3... cxd4 {[%clk 0:03:00.9]}
4. Nxd4 {[%clk 0:03:02.1]} 4... Nf6 {[%clk 0:03:02.3]} 5. Nc3 {[%clk 0:02:58.2]}
5... Nc6 {[%clk 0:03:03.3]} 6. g3 {[%clk 0:02:57]} 6... Bb4 {[%clk 0:02:49.3]}
7. Bg2 {[%clk 0:02:57.2]} 7... O-O {[%clk 0:02:50]} 8. O-O {[%clk 0:02:57.5]}
8... Bxc3 {[%clk 0:02:45.3]} 9. bxc3 {[%clk 0:02:57.8]} 9... d6 {[%clk
0:02:44.8]} 10. Nxc6 {[%clk 0:02:44.5]} 10... bxc6 {[%clk 0:02:44.3]} 11. e5
{[%clk 0:02:45.3]} 11... dxe5 {[%clk 0:02:40.5]} 12. Bxc6 {[%clk 0:02:45.5]}
12... Rb8 {[%clk 0:02:40.1]} 13. Ba3 {[%clk 0:02:46.1]} 13... Qb6 {[%clk
0:02:28.6]} 14. Rb1 {[%clk 0:02:21.7]} 14... Qxb1 {[%clk 0:02:14.4]} 15. Qxb1
{[%clk 0:02:21.1]} 15... Rxb1 {[%clk 0:02:16.3]} 16. Rxb1 {[%clk 0:02:22.1]}
16... Rd8 {[%clk 0:02:05.5]} 17. Be7 {[%clk 0:02:20.6]} 17... Rd2 {[%clk
0:01:58]} 18. Rb8 {[%clk 0:02:18.2]} 18... Rd1+ {[%clk 0:01:57.6]} 19. Kg2
{[%clk 0:02:17.5]} 1-0

[Event "*** Titled Tuesday Blitz"]
[Site "Chess.com"]
[Date "2019.03.05"]
[Round "8"]
[White "LukasHandler"]
[Black "Mbneu"]
[Result "1-0"]
[WhiteElo "2389"]
[BlackElo "2236"]
[TimeControl "180+2"]
[EndTime "14:53:21 PST"]
[Termination "LukasHandler won by resignation"]

1. d4 {[%clk 0:03:01.9]} 1... Nf6 {[%clk 0:02:59.6]} 2. c4 {[%clk 0:03:02.2]}
2... c5 {[%clk 0:03:00.5]} 3. d5 {[%clk 0:03:03.1]} 3... e6 {[%clk 0:03:01.5]}
4. Nc3 {[%clk 0:03:03.5]} 4... exd5 {[%clk 0:03:02.7]} 5. cxd5 {[%clk
0:03:04.8]} 5... d6 {[%clk 0:03:04.3]} 6. e4 {[%clk 0:03:03.2]} 6... g6 {[%clk
0:03:05.4]} 7. Be2 {[%clk 0:03:04.3]} 7... Bg7 {[%clk 0:03:06.6]} 8. Be3 {[%clk
0:03:05.6]} 8... O-O {[%clk 0:03:07.1]} 9. Nf3 {[%clk 0:03:01.7]} 9... Re8
{[%clk 0:03:03.8]} 10. Nd2 {[%clk 0:03:02.2]} 10... Nbd7 {[%clk 0:03:01.1]} 11.
O-O {[%clk 0:02:59.1]} 11... a6 {[%clk 0:03:00.4]} 12. a4 {[%clk 0:02:59.7]}
12... Rb8 {[%clk 0:02:58.2]} 13. h3 {[%clk 0:02:59.9]} 13... Qc7 {[%clk
0:02:51.2]} 14. Bf4 {[%clk 0:02:58.2]} 14... Ne5 {[%clk 0:02:30.1]} 15. Bg3
{[%clk 0:02:57]} 15... c4 {[%clk 0:02:30.3]} 16. Bxe5 {[%clk 0:02:53.9]} 16...
Rxe5 {[%clk 0:02:22.1]} 17. Bxc4 {[%clk 0:02:46.7]} 17... b5 {[%clk 0:02:12.2]}
18. axb5 {[%clk 0:02:45.6]} 18... axb5 {[%clk 0:02:12.5]} 19. Bxb5 {[%clk
0:02:45.8]} 19... Qc5 {[%clk 0:02:01.3]} 20. Bc6 {[%clk 0:02:38.6]} 20... Rxb2
{[%clk 0:01:57.8]} 21. Na4 {[%clk 0:02:37.3]} 21... Rxd2 {[%clk 0:01:48.8]} 22.
Nxc5 {[%clk 0:02:26.2]} 22... Rxd1 {[%clk 0:01:47.7]} 23. Rfxd1 {[%clk
0:02:26.9]} 23... dxc5 {[%clk 0:01:48.3]} 24. Ra8 {[%clk 0:02:27.5]} 1-0

[Event "*** Titled Tuesday Blitz"]
[Site "Chess.com"]
[Date "2019.03.05"]
[Round "8"]
[White "jocmil"]
[Black "tunadrol"]
[Result "1/2-1/2"]
[WhiteElo "2436"]
[BlackElo "2498"]
[TimeControl "180+2"]
[EndTime "14:53:53 PST"]
[Termination "Game drawn by agreement"]

1. Nf3 {[%clk 0:03:01.9]} 1... Nf6 {[%clk 0:03:00.5]} 2. c4 {[%clk 0:03:02.7]}
2... d5 {[%clk 0:03:00.6]} 3. d4 {[%clk 0:03:02.7]} 3... g6 {[%clk 0:02:58.1]}
4. e3 {[%clk 0:03:03.7]} 4... Bg7 {[%clk 0:02:58.7]} 5. Nc3 {[%clk 0:03:05.1]}
5... O-O {[%clk 0:02:59.4]} 6. cxd5 {[%clk 0:03:00.5]} 6... Nxd5 {[%clk
0:02:58]} 7. Be2 {[%clk 0:03:01]} 7... c5 {[%clk 0:02:58]} 8. Nxd5 {[%clk
0:02:55.3]} 8... Qxd5 {[%clk 0:02:58.2]} 9. dxc5 {[%clk 0:02:56.3]} 9... Qxc5
{[%clk 0:02:50.2]} 10. O-O {[%clk 0:02:56.3]} 10... Nc6 {[%clk 0:02:50.9]} 11.
Qb3 {[%clk 0:02:29.3]} 11... Bf5 {[%clk 0:01:39]} 12. Bd2 {[%clk 0:02:26.1]}
12... Qb6 {[%clk 0:01:31.1]} 13. Qxb6 {[%clk 0:02:24.6]} 13... axb6 {[%clk
0:01:33]} 14. Bc3 {[%clk 0:02:25.9]} 14... Bxc3 {[%clk 0:01:29.5]} 15. bxc3
{[%clk 0:02:27.8]} 15... Ra3 {[%clk 0:01:30.3]} 16. Nd4 {[%clk 0:02:24.7]} 16...
Rxc3 {[%clk 0:01:27.8]} 17. Nxf5 {[%clk 0:02:25.2]} 17... gxf5 {[%clk
0:01:29.3]} 18. Rab1 {[%clk 0:02:26]} 18... Rc2 {[%clk 0:01:27.2]} 19. Bf3
{[%clk 0:02:23.6]} 19... Ne5 {[%clk 0:01:10.7]} 20. Rxb6 {[%clk 0:02:23.1]}
20... Nxf3+ {[%clk 0:01:10]} 21. gxf3 {[%clk 0:02:25]} 21... Rxa2 {[%clk
0:01:07.9]} 22. Rxb7 {[%clk 0:02:25.6]} 22... e6 {[%clk 0:01:08.9]} 23. f4
{[%clk 0:02:25.9]} 1/2-1/2

[Event "*** Titled Tuesday Blitz"]
[Site "Chess.com"]
[Date "2019.03.05"]
[Round "8"]
[White "PotapovaM"]
[Black "Ibraev_Vasilj"]
[Result "1/2-1/2"]
[WhiteElo "2426"]
[BlackElo "2163"]
[TimeControl "180+2"]
[EndTime "14:54:15 PST"]
[Termination "Game drawn by repetition"]

1. d4 {[%clk 0:03:01.9]} 1... Nf6 {[%clk 0:02:59.3]} 2. c4 {[%clk 0:03:02.8]}
2... g6 {[%clk 0:02:59.8]} 3. Nc3 {[%clk 0:03:03.5]} 3... Bg7 {[%clk 0:03:00.7]}
4. e4 {[%clk 0:03:05.2]} 4... d6 {[%clk 0:03:01.6]} 5. Nf3 {[%clk 0:03:06.6]}
5... O-O {[%clk 0:03:02.3]} 6. h3 {[%clk 0:03:08.2]} 6... c5 {[%clk 0:03:01.5]}
7. d5 {[%clk 0:03:09]} 7... e6 {[%clk 0:03:01.8]} 8. Bd3 {[%clk 0:03:10.7]} 8...
exd5 {[%clk 0:03:00.9]} 9. exd5 {[%clk 0:03:12.6]} 9... Re8+ {[%clk 0:02:59.7]}
10. Be3 {[%clk 0:03:14.2]} 10... a6 {[%clk 0:03:00.1]} 11. O-O {[%clk
0:03:14.8]} 11... Nbd7 {[%clk 0:02:59.2]} 12. Re1 {[%clk 0:03:00]} 12... Rb8
{[%clk 0:02:58.3]} 13. a4 {[%clk 0:02:59.3]} 13... b6 {[%clk 0:02:56]} 14. Qd2
{[%clk 0:02:57.3]} 14... Qc7 {[%clk 0:02:48.9]} 15. Bh6 {[%clk 0:02:41.1]} 15...
Bb7 {[%clk 0:02:46.7]} 16. Qg5 {[%clk 0:02:24.8]} 16... Bh8 {[%clk 0:02:40.1]}
17. h4 {[%clk 0:02:18.6]} 17... Nf8 {[%clk 0:02:23.9]} 18. Nd2 {[%clk
0:01:42.9]} 18... N8d7 {[%clk 0:01:52.7]} 19. Nf3 {[%clk 0:01:39.1]} 19... Nf8
{[%clk 0:01:51.6]} 20. Nd2 {[%clk 0:01:39.8]} 20... N8d7 {[%clk 0:01:51.6]} 21.
Nf3 {[%clk 0:01:27]} 21... Nf8 {[%clk 0:01:42.1]} 1/2-1/2

[Event "*** Titled Tuesday Blitz"]
[Site "Chess.com"]
[Date "2019.03.05"]
[Round "8"]
[White "yuki_chess123"]
[Black "chesstatour"]
[Result "0-1"]
[WhiteElo "2124"]
[BlackElo "2018"]
[TimeControl "180+2"]
[EndTime "14:54:15 PST"]
[Termination "chesstatour won by resignation"]

1. e4 {[%clk 0:03:01.9]} 1... c6 {[%clk 0:03:00.4]} 2. d3 {[%clk 0:03:02.6]}
2... d5 {[%clk 0:03:02.3]} 3. Nd2 {[%clk 0:03:03.6]} 3... dxe4 {[%clk
0:03:03.2]} 4. dxe4 {[%clk 0:03:03.4]} 4... e5 {[%clk 0:03:04.7]} 5. Ngf3 {[%clk
0:03:04]} 5... Qc7 {[%clk 0:03:03.3]} 6. Bc4 {[%clk 0:03:04.7]} 6... Be7 {[%clk
0:03:02.4]} 7. O-O {[%clk 0:03:05.3]} 7... Nf6 {[%clk 0:03:03.7]} 8. a4 {[%clk
0:03:05.7]} 8... a5 {[%clk 0:03:04.2]} 9. Qe2 {[%clk 0:03:06]} 9... O-O {[%clk
0:03:05.6]} 10. h3 {[%clk 0:03:06.4]} 10... Nbd7 {[%clk 0:03:05.7]} 11. Rd1
{[%clk 0:03:07.6]} 11... Nb6 {[%clk 0:02:46.6]} 12. Bb3 {[%clk 0:03:06.4]} 12...
Bd7 {[%clk 0:02:36.3]} 13. Nf1 {[%clk 0:03:06.6]} 13... Rad8 {[%clk 0:02:33.5]}
14. Ng3 {[%clk 0:03:04.8]} 14... Bc8 {[%clk 0:02:26]} 15. Bd2 {[%clk 0:03:05]}
15... Nbd7 {[%clk 0:02:13.9]} 16. Bc3 {[%clk 0:03:03.6]} 16... Bb4 {[%clk
0:01:57.4]} 17. Bxb4 {[%clk 0:03:01.7]} 17... axb4 {[%clk 0:01:57.7]} 18. Ng5
{[%clk 0:03:03]} 18... h6 {[%clk 0:01:50.3]} 19. Nxf7 {[%clk 0:03:01.7]} 19...
Rxf7 {[%clk 0:01:47.5]} 20. Bxf7+ {[%clk 0:03:03]} 20... Kxf7 {[%clk 0:01:47.6]}
21. Qc4+ {[%clk 0:03:04.4]} 21... Kg6 {[%clk 0:01:29.4]} 22. Nf5 {[%clk
0:03:02.3]} 22... Nb6 {[%clk 0:01:19.4]} 23. Qe2 {[%clk 0:03:01]} 23... Bxf5
{[%clk 0:01:14.6]} 24. exf5+ {[%clk 0:03:00.6]} 24... Kxf5 {[%clk 0:01:10.1]}
25. a5 {[%clk 0:03:00.3]} 25... Nbd5 {[%clk 0:01:08.9]} 26. Qd3+ {[%clk
0:02:52.2]} 26... e4 {[%clk 0:00:53.5]} 27. Qd4 {[%clk 0:02:51.3]} 27... Qe5
{[%clk 0:00:51.6]} 28. Qb6 {[%clk 0:02:46.4]} 28... Nxb6 {[%clk 0:00:44.3]} 0-1

[Event "*** Titled Tuesday Blitz"]
[Site "Chess.com"]
[Date "2019.03.05"]
[Round "8"]
[White "LearningChess2019"]
[Black "cherryandmint"]
[Result "0-1"]
[WhiteElo "2375"]
[BlackElo "2612"]
[TimeControl "180+2"]
[EndTime "14:54:22 PST"]
[Termination "cherryandmint won by resignation"]

1. e4 {[%clk 0:03:01.9]} 1... e5 {[%clk 0:02:59]} 2. Nf3 {[%clk 0:02:59.5]} 2...
Nc6 {[%clk 0:03:00.7]} 3. Nc3 {[%clk 0:02:59.5]} 3... Nf6 {[%clk 0:02:58.2]} 4.
Bb5 {[%clk 0:03:00.3]} 4... Bd6 {[%clk 0:02:50.9]} 5. a3 {[%clk 0:03:00.3]} 5...
O-O {[%clk 0:02:33.8]} 6. g4 {[%clk 0:02:58.6]} 6... Nd4 {[%clk 0:02:21.8]} 7.
Bc4 {[%clk 0:02:40.4]} 7... Nxg4 {[%clk 0:02:10.4]} 8. Nxd4 {[%clk 0:02:34.8]}
8... Qh4 {[%clk 0:01:35.2]} 9. Qe2 {[%clk 0:00:59.7]} 9... exd4 {[%clk
0:01:35.8]} 10. Nb5 {[%clk 0:00:56.6]} 10... Be5 {[%clk 0:01:31.2]} 11. d3
{[%clk 0:00:50.4]} 11... c6 {[%clk 0:01:30.4]} 12. Rg1 {[%clk 0:00:47.3]} 12...
d5 {[%clk 0:01:31.2]} 0-1

[Event "*** Titled Tuesday Blitz"]
[Site "Chess.com"]
[Date "2019.03.05"]
[Round "8"]
[White "DACF2905"]
[Black "NM2019"]
[Result "0-1"]
[WhiteElo "2077"]
[BlackElo "2104"]
[TimeControl "180+2"]
[EndTime "14:55:09 PST"]
[Termination "NM2019 won by resignation"]

1. e4 {[%clk 0:03:01.9]} 1... c5 {[%clk 0:02:59]} 2. Nf3 {[%clk 0:02:55.4]} 2...
d6 {[%clk 0:02:59.9]} 3. d4 {[%clk 0:02:46.8]} 3... cxd4 {[%clk 0:03:00.9]} 4.
Nxd4 {[%clk 0:02:43.8]} 4... Nf6 {[%clk 0:03:01.7]} 5. Nc3 {[%clk 0:02:37.5]}
5... a6 {[%clk 0:03:02.9]} 6. Bg5 {[%clk 0:02:12.1]} 6... e5 {[%clk 0:03:03.3]}
7. Nde2 {[%clk 0:02:06.4]} 7... Be7 {[%clk 0:03:03.2]} 8. Bxf6 {[%clk
0:02:06.3]} 8... Bxf6 {[%clk 0:03:03.9]} 9. Nd5 {[%clk 0:02:08.2]} 9... O-O
{[%clk 0:03:02.1]} 10. g3 {[%clk 0:02:08.8]} 10... Be6 {[%clk 0:02:58.6]} 11.
Bg2 {[%clk 0:02:08.4]} 11... Nc6 {[%clk 0:02:55.5]} 12. c3 {[%clk 0:02:09]}
12... Bxd5 {[%clk 0:02:48.5]} 13. Qxd5 {[%clk 0:02:09.1]} 13... Qb6 {[%clk
0:02:44.7]} 14. b3 {[%clk 0:02:05.9]} 14... Ne7 {[%clk 0:02:37.5]} 15. Qd3
{[%clk 0:02:05.6]} 15... Rfd8 {[%clk 0:02:34.3]} 16. O-O {[%clk 0:02:06.4]}
16... Rac8 {[%clk 0:02:33]} 17. Rad1 {[%clk 0:02:06.1]} 17... Qa5 {[%clk
0:02:30.3]} 18. Qb1 {[%clk 0:02:05.5]} 18... g6 {[%clk 0:02:26.8]} 19. c4 {[%clk
0:02:03.2]} 19... b5 {[%clk 0:02:27.2]} 20. cxb5 {[%clk 0:02:00.1]} 20... Qxb5
{[%clk 0:02:22.9]} 21. Bf3 {[%clk 0:01:54.2]} 21... Bg7 {[%clk 0:02:17.7]} 22.
a4 {[%clk 0:01:46.7]} 22... Qb4 {[%clk 0:02:15.1]} 23. Qd3 {[%clk 0:01:47]}
23... d5 {[%clk 0:01:57.1]} 24. exd5 {[%clk 0:01:46.7]} 24... f5 {[%clk
0:01:56.8]} 25. d6 {[%clk 0:01:37.9]} 25... e4 {[%clk 0:01:53.8]} 26. dxe7
{[%clk 0:01:38]} 26... Rxd3 {[%clk 0:01:54.4]} 27. Rc1 {[%clk 0:01:30.9]} 27...
Re8 {[%clk 0:01:49.3]} 28. Bg2 {[%clk 0:01:26.3]} 28... Qxe7 {[%clk 0:01:47.7]}
29. Nf4 {[%clk 0:01:26.2]} 29... Rxb3 {[%clk 0:01:45]} 0-1

[Event "*** Titled Tuesday Blitz"]
[Site "Chess.com"]
[Date "2019.03.05"]
[Round "8"]
[White "DrMelekess"]
[Black "DanielNaroditsky"]
[Result "0-1"]
[WhiteElo "2702"]
[BlackElo "2974"]
[TimeControl "180+2"]
[EndTime "14:55:10 PST"]
[Termination "DanielNaroditsky won by resignation"]

1. d4 {[%clk 0:03:01.9]} 1... Nf6 {[%clk 0:03:01]} 2. Nf3 {[%clk 0:03:03.1]}
2... g6 {[%clk 0:03:02.2]} 3. Nbd2 {[%clk 0:03:04]} 3... c5 {[%clk 0:03:02.5]}
4. e3 {[%clk 0:02:46.4]} 4... Bg7 {[%clk 0:03:02]} 5. Be2 {[%clk 0:02:36.3]}
5... cxd4 {[%clk 0:03:02.7]} 6. exd4 {[%clk 0:02:36.8]} 6... O-O {[%clk
0:03:04.6]} 7. O-O {[%clk 0:02:37.7]} 7... d5 {[%clk 0:03:03.7]} 8. c3 {[%clk
0:02:38.1]} 8... Nc6 {[%clk 0:03:03.9]} 9. Re1 {[%clk 0:02:39.2]} 9... Bf5
{[%clk 0:03:04.5]} 10. Nf1 {[%clk 0:02:40.2]} 10... Ne4 {[%clk 0:03:01.5]} 11.
Ng3 {[%clk 0:02:40.3]} 11... Nxg3 {[%clk 0:03:02.4]} 12. hxg3 {[%clk 0:02:42.2]}
12... Rc8 {[%clk 0:03:03]} 13. Bf1 {[%clk 0:02:31.1]} 13... f6 {[%clk
0:02:57.4]} 14. Nh4 {[%clk 0:01:46.2]} 14... Bd7 {[%clk 0:02:58.5]} 15. Bd3
{[%clk 0:01:47.1]} 15... e5 {[%clk 0:02:56.8]} 16. Nxg6 {[%clk 0:00:13.8]} 16...
hxg6 {[%clk 0:02:57]} 17. Bxg6 {[%clk 0:00:15.7]} 17... Ne7 {[%clk 0:02:55.8]}
18. Bc2 {[%clk 0:00:14.2]} 18... e4 {[%clk 0:02:56.6]} 19. Qh5 {[%clk
0:00:13.6]} 19... Qe8 {[%clk 0:02:56.1]} 20. Qe2 {[%clk 0:00:06.8]} 20... f5
{[%clk 0:02:54.1]} 21. Bf4 {[%clk 0:00:06.8]} 21... Qg6 {[%clk 0:02:52.5]} 22.
Bb3 {[%clk 0:00:06.9]} 22... a6 {[%clk 0:02:49.5]} 23. a4 {[%clk 0:00:07.3]}
23... Rf7 {[%clk 0:02:48.6]} 24. Qe3 {[%clk 0:00:07.6]} 24... Bf6 {[%clk
0:02:46.9]} 25. Be5 {[%clk 0:00:08.4]} 25... Bxe5 {[%clk 0:02:43.2]} 26. dxe5
{[%clk 0:00:10.3]} 26... f4 {[%clk 0:02:45.1]} 27. gxf4 {[%clk 0:00:10.2]} 27...
Nf5 {[%clk 0:02:46.7]} 28. Qh3 {[%clk 0:00:04.4]} 28... Rh7 {[%clk 0:02:46.5]}
29. Bxd5+ {[%clk 0:00:05]} 29... Kg7 {[%clk 0:02:47.9]} 30. Qxh7+ {[%clk
0:00:03.9]} 30... Qxh7 {[%clk 0:02:47.9]} 31. e6 {[%clk 0:00:05.1]} 31... Rh8
{[%clk 0:02:49]} 0-1

[Event "*** Titled Tuesday Blitz"]
[Site "Chess.com"]
[Date "2019.03.05"]
[Round "8"]
[White "riconaipe"]
[Black "AdrianaNikolova"]
[Result "1-0"]
[WhiteElo "2444"]
[BlackElo "2435"]
[TimeControl "180+2"]
[EndTime "14:55:20 PST"]
[Termination "riconaipe won by resignation"]

1. d4 {[%clk 0:03:01.9]} 1... d5 {[%clk 0:02:59.8]} 2. c4 {[%clk 0:03:03.3]}
2... c6 {[%clk 0:03:00.9]} 3. Nf3 {[%clk 0:03:03.8]} 3... Nf6 {[%clk 0:03:01.6]}
4. Nc3 {[%clk 0:03:03.6]} 4... dxc4 {[%clk 0:03:02.1]} 5. a4 {[%clk 0:03:04.2]}
5... Bf5 {[%clk 0:03:03.1]} 6. Ne5 {[%clk 0:03:05.4]} 6... Nbd7 {[%clk
0:03:01.3]} 7. Nxc4 {[%clk 0:03:06.4]} 7... Qc7 {[%clk 0:03:02.5]} 8. g3 {[%clk
0:03:06.6]} 8... e5 {[%clk 0:03:03.7]} 9. dxe5 {[%clk 0:03:07.2]} 9... Nxe5
{[%clk 0:03:05.6]} 10. Bf4 {[%clk 0:03:08.6]} 10... Nfd7 {[%clk 0:03:07]} 11.
Bg2 {[%clk 0:03:09.1]} 11... g5 {[%clk 0:03:07.6]} 12. Nxe5 {[%clk 0:02:59]}
12... gxf4 {[%clk 0:03:06.4]} 13. Nd3 {[%clk 0:02:52.8]} 13... fxg3 {[%clk
0:03:00.9]} 14. hxg3 {[%clk 0:02:54.2]} 14... O-O-O {[%clk 0:03:00.1]} 15. O-O
{[%clk 0:02:49.9]} 15... h5 {[%clk 0:02:57.3]} 16. Rc1 {[%clk 0:02:50]} 16... h4
{[%clk 0:02:28.9]} 17. Nb5 {[%clk 0:02:45.7]} 17... Qb6 {[%clk 0:02:17.8]} 18.
Bxc6 {[%clk 0:02:38.6]} 18... Kb8 {[%clk 0:01:12.5]} 19. Bxd7 {[%clk 0:02:16.8]}
19... Rxd7 {[%clk 0:00:43.5]} 20. Qc2 {[%clk 0:02:17.2]} 20... Bh6 {[%clk
0:00:40.6]} 21. Qc5 {[%clk 0:02:12.5]} 21... Bxd3 {[%clk 0:00:24.6]} 22. Qe5+
{[%clk 0:02:07.6]} 22... Ka8 {[%clk 0:00:11.3]} 23. Qxh8+ {[%clk 0:02:01.5]}
23... Rd8 {[%clk 0:00:10.8]} 24. Rc8+ {[%clk 0:02:00.8]} 1-0

[Event "*** Titled Tuesday Blitz"]
[Site "Chess.com"]
[Date "2019.03.05"]
[Round "8"]
[White "GremioPrudente"]
[Black "Blagorod"]
[Result "1/2-1/2"]
[WhiteElo "2052"]
[BlackElo "2122"]
[TimeControl "180+2"]
[EndTime "14:55:21 PST"]
[Termination "Game drawn by repetition"]

1. Nf3 {[%clk 0:03:01.9]} 1... Nc6 {[%clk 0:03:00]} 2. d4 {[%clk 0:03:02.1]}
2... d5 {[%clk 0:03:01]} 3. Bf4 {[%clk 0:03:01.6]} 3... Bg4 {[%clk 0:02:57.4]}
4. e3 {[%clk 0:03:01.8]} 4... e6 {[%clk 0:02:58.6]} 5. Be2 {[%clk 0:03:02.6]}
5... Bd6 {[%clk 0:03:00.1]} 6. Bg3 {[%clk 0:03:03.3]} 6... Nf6 {[%clk
0:02:49.6]} 7. O-O {[%clk 0:03:04.1]} 7... Bxg3 {[%clk 0:02:44.2]} 8. hxg3
{[%clk 0:03:04.6]} 8... O-O {[%clk 0:02:45.7]} 9. c4 {[%clk 0:03:05.3]} 9...
dxc4 {[%clk 0:02:41.4]} 10. Bxc4 {[%clk 0:03:05.7]} 10... e5 {[%clk 0:02:22.7]}
11. dxe5 {[%clk 0:03:01.3]} 11... Qxd1 {[%clk 0:02:12.7]} 12. Rxd1 {[%clk
0:03:00.1]} 12... Nxe5 {[%clk 0:02:10.8]} 13. Be2 {[%clk 0:03:00.8]} 13... Nxf3+
{[%clk 0:02:04.9]} 14. Bxf3 {[%clk 0:03:01]} 14... Bxf3 {[%clk 0:02:05.7]} 15.
gxf3 {[%clk 0:03:01.6]} 15... Rfd8 {[%clk 0:02:05.4]} 16. Nc3 {[%clk 0:03:01.8]}
16... c6 {[%clk 0:02:06.6]} 17. Kf1 {[%clk 0:03:00]} 17... Kf8 {[%clk 0:02:07]}
18. Ke2 {[%clk 0:03:00.9]} 18... Ke7 {[%clk 0:02:08.5]} 19. e4 {[%clk
0:02:57.3]} 19... Rxd1 {[%clk 0:02:03.8]} 20. Rxd1 {[%clk 0:02:57.7]} 20... Rd8
{[%clk 0:02:05.3]} 21. Rxd8 {[%clk 0:02:56.3]} 21... Kxd8 {[%clk 0:02:06.1]} 22.
Ke3 {[%clk 0:02:57.1]} 22... Ke7 {[%clk 0:02:06.6]} 23. Kd4 {[%clk 0:02:56.2]}
23... Nd7 {[%clk 0:02:05.6]} 24. Na4 {[%clk 0:02:51.2]} 24... b6 {[%clk
0:02:02.8]} 25. f4 {[%clk 0:02:43.6]} 25... h5 {[%clk 0:02:01.1]} 26. Nc3 {[%clk
0:02:39.5]} 26... g6 {[%clk 0:01:55.9]} 27. e5 {[%clk 0:02:37.4]} 27... Ke6
{[%clk 0:01:54.9]} 28. Ne4 {[%clk 0:02:36.9]} 28... a6 {[%clk 0:01:27.8]} 29. b4
{[%clk 0:02:27.3]} 29... Nf8 {[%clk 0:00:58.1]} 30. Ng5+ {[%clk 0:02:27.2]}
30... Ke7 {[%clk 0:00:56.8]} 31. Ne4 {[%clk 0:02:27.2]} 31... Ne6+ {[%clk
0:00:56.9]} 32. Kc4 {[%clk 0:02:19.3]} 32... Nc7 {[%clk 0:00:55.3]} 33. a4
{[%clk 0:02:14.7]} 33... Ke6 {[%clk 0:00:52.6]} 34. Ng5+ {[%clk 0:02:13.8]}
34... Ke7 {[%clk 0:00:53.2]} 35. Ne4 {[%clk 0:02:13.5]} 35... Ke6 {[%clk
0:00:50.7]} 36. Ng5+ {[%clk 0:02:14.3]} 36... Ke7 {[%clk 0:00:51.9]} 37. Ne4
{[%clk 0:02:15.3]} 1/2-1/2

[Event "*** Titled Tuesday Blitz"]
[Site "Chess.com"]
[Date "2019.03.05"]
[Round "8"]
[White "JoachimMouhamad"]
[Black "HanSchut"]
[Result "1-0"]
[WhiteElo "2322"]
[BlackElo "2302"]
[TimeControl "180+2"]
[EndTime "14:55:40 PST"]
[Termination "JoachimMouhamad won by resignation"]

1. e4 {[%clk 0:03:01.6]} 1... c5 {[%clk 0:03:00]} 2. Nf3 {[%clk 0:03:02.9]} 2...
d6 {[%clk 0:03:01.6]} 3. d4 {[%clk 0:03:04.4]} 3... cxd4 {[%clk 0:03:03.2]} 4.
Nxd4 {[%clk 0:03:06.3]} 4... Nf6 {[%clk 0:03:04.3]} 5. Nc3 {[%clk 0:03:08]} 5...
a6 {[%clk 0:03:05.7]} 6. f3 {[%clk 0:03:09.3]} 6... e5 {[%clk 0:03:05.7]} 7. Nb3
{[%clk 0:03:10.8]} 7... Be6 {[%clk 0:03:07.3]} 8. Be3 {[%clk 0:03:12.5]} 8...
Be7 {[%clk 0:03:08.6]} 9. Qd2 {[%clk 0:03:14.1]} 9... O-O {[%clk 0:03:10]} 10.
O-O-O {[%clk 0:03:15.7]} 10... Nbd7 {[%clk 0:03:11.3]} 11. g4 {[%clk 0:03:17.2]}
11... b5 {[%clk 0:03:10.8]} 12. g5 {[%clk 0:03:18.1]} 12... b4 {[%clk
0:03:12.2]} 13. Ne2 {[%clk 0:03:13.6]} 13... Ne8 {[%clk 0:03:11.8]} 14. f4
{[%clk 0:03:13.7]} 14... a5 {[%clk 0:03:13.4]} 15. f5 {[%clk 0:03:13.1]} 15...
Bxb3 {[%clk 0:03:14.9]} 16. cxb3 {[%clk 0:03:00.4]} 16... a4 {[%clk 0:03:16.5]}
17. bxa4 {[%clk 0:02:54]} 17... Rxa4 {[%clk 0:03:18.4]} 18. Kb1 {[%clk
0:02:55.7]} 18... Rxa2 {[%clk 0:03:19.3]} 19. Kxa2 {[%clk 0:02:52.1]} 19... Qa8+
{[%clk 0:03:19.4]} 20. Kb3 {[%clk 0:02:39]} 20... Bxg5 {[%clk 0:03:19.6]} 21.
Rc1 {[%clk 0:02:28.4]} 21... Qxe4 {[%clk 0:01:46.1]} 22. Bxg5 {[%clk 0:02:28.8]}
22... Qxh1 {[%clk 0:01:41.3]} 23. Be7 {[%clk 0:02:30]} 23... Nc5+ {[%clk
0:01:23.2]} 24. Rxc5 {[%clk 0:02:30]} 24... dxc5 {[%clk 0:01:25.1]} 25. Ng3
{[%clk 0:02:02.7]} 25... Qf3+ {[%clk 0:00:59]} 26. Qd3 {[%clk 0:02:03.7]} 26...
c4+ {[%clk 0:00:55.5]} 27. Kxc4 {[%clk 0:02:05]} 27... Qc6+ {[%clk 0:00:46.8]}
28. Kb3 {[%clk 0:02:06]} 28... Nc7 {[%clk 0:00:35.6]} 29. Bxf8 {[%clk
0:02:06.9]} 29... Nb5 {[%clk 0:00:28.3]} 30. Qxb5 {[%clk 0:01:50.4]} 1-0